Cogmind - Beta 11.1 @@@ ROGUE MODE // 2022.06.14 @ 19:06:41 Player: Exp. Geonium Core Result: Destroyed by Z-Imprinter with Zionite Laser-M Performance ------------- Evolutions (3) 1500 Regions Visited (12) 2400 Robots Destroyed (79) 395 Value Destroyed (2351) 2351 Prototype IDs (36) 720 Alien Tech Used (0) 0 Bonus (-749) -749 TOTAL SCORE: 6617 Bonus ------- Follower Combat Kills 60 Aligned with FarCom 300 Friendly Fire -1109 Cogmind --------- Core Integrity 0/700 Matter 228/300 Energy 82/100 System Corruption 0% Temperature Cool (9) Movement Core (50) Location -7/Deep Caves Parts ------- > --- POWER (1) -------- (None) > --- PROPULSION (4) --- (None) > --- UTILITY (6) ------ Improved Targeting Computer Experimental Core Analyzer Improved Armor Integrity Analyzer > --- WEAPON (2) ------- Makeshift Hammer > --- INVENTORY (5) ---- Airjet High-capacity Storage Unit Hacking Suite Peak State ------------ > --- POWER ------------ Cold Fusion Reactor > --- PROPULSION ------- Carbon-fiber Leg Makeshift Leg Advanced Myomer Leg Advanced Myomer Leg > --- UTILITY ---------- High-capacity Storage Unit Improved Targeting Computer Experimental Core Analyzer Improved Armor Integrity Analyzer Improved Medium Armor Plating Phasing AFG > --- WEAPON ----------- 8R-AWN's Boregun 8R-AWN's Boregun > --- INVENTORY -------- Enhanced Nuclear Core Airjet Gravmag System Gravmag System Gravmag Array Makeshift Hover Unit Experimental Heat Sink High-capacity Storage Unit High-capacity Matter Pod Advanced Launcher Guidance Computer Improved Medium Armor Plating Hacking Suite Advanced Component Analysis Suite Sensor Drone Bay AS-neutralizer No. 17b Improved Grenade Launcher Plasma Cutter Makeshift Hammer [Rating: 94] Favorites ----------- Power Cold Fusion Reactor Engine Deuterium Engine Power Core Light Nuclear Core Reactor Cold Fusion Reactor Propulsion Advanced Myomer Leg Treads Improved Treads Leg Advanced Myomer Leg Utility High-capacity Storage Unit Device Sensor Drone Bay Storage High-capacity Storage Unit Processor Improved Targeting Computer Hackware Hacking Suite Protection Improved Medium Armor Plating Weapon 8R-AWN's Boregun Energy Gun Improved EM Shotgun Energy Cannon Advanced Beam Cannon Ballistic Gun 8R-AWN's Boregun Launcher Improved Grenade Launcher Special Weapon Plasma Cutter Impact Weapon Makeshift Hammer Slashing Weapon Makeshift Axe Build | -11 -10 -10 -9 -9 -9 -8 -8 -7 -7 -7 -7 -7 ------- Run | Scr Mat Min Mat Min Exi Min Mat Fac Low Low Zio Dee Slots Evolved 6 | . . . 2 . . . 2 2 . . . . Power . | . . . . . . . . . . . . . Propulsion 2 | . . . . . . . 2 . . . . . Utility 4 | . . . 2 . . . . 2 . . . . Weapon . | . . . . . . . . . . . . . Parts Attached 89 | 3 10 3 12 4 32 . 5 7 . 1 1 11 Power 6 | . 1 2 . . 3 . . . . . . . Engine 4 | . 1 1 . . 2 . . . . . . . Core 1 | . . 1 . . . . . . . . . . Reactor 1 | . . . . . 1 . . . . . . . Propulsion 14 | 2 3 1 1 . 5 . 2 . . . . . Treads 10 | 2 3 1 1 . 3 . . . . . . . Leg 4 | . . . . . 2 . 2 . . . . . Wheel . | . . . . . . . . . . . . . Hover . | . . . . . . . . . . . . . Flight . | . . . . . . . . . . . . . Utility 28 | . 3 . 5 . 10 . 1 4 . . . 5 Device 10 | . 1 . 1 . 5 . . 1 . . . 2 Storage 4 | . 1 . 2 . 1 . . . . . . . Processor 7 | . 1 . 1 . 3 . . . . . . 2 Hackware 1 | . . . . . . . . 1 . . . . Protection 6 | . . . 1 . 1 . 1 2 . . . 1 Artifact . | . . . . . . . . . . . . . Weapon 41 | 1 3 . 6 4 14 . 2 3 . 1 1 6 Energy Gun 9 | . 3 . 1 . 4 . . . . . . 1 Energy Cannon 1 | . . . 1 . . . . . . . . . Ballistic Gun 14 | 1 . . 3 1 5 . 1 1 . . . 2 Ballistic Cannon . | . . . . . . . . . . . . . Launcher 12 | . . . 1 3 4 . 1 1 . 1 . 1 Special Weapon 1 | . . . . . . . . . . . . 1 Impact Weapon 2 | . . . . . . . . . . . 1 1 Slashing Weapon 2 | . . . . . 1 . . 1 . . . . Piercing Weapon . | . . . . . . . . . . . . . Special Melee Weapon . | . . . . . . . . . . . . . Unidentified Prototypes 13 | . 1 . 2 . 8 . . . . . . 2 Parts Lost 25 | . 1 2 . . 7 . 1 . . 1 . 13 Power 4 | . . 1 . . 2 . . . . . . 1 Propulsion 9 | . 1 1 . . 3 . . . . . . 4 Utility 5 | . . . . . 1 . 1 . . . . 3 Weapon 7 | . . . . . 1 . . . . 1 . 5 Highest Loss Streak 13 | . 1 1 . . 6 . 1 . . 1 . 13 To Critical Strikes 3 | . . . . . 3 . . . . . . . Average Slot Usage (%) 96 | . 99 99 93 100 90 100 92 99 100 100 100 85 Engine 5 | . 14 7 11 11 6 . . . . . . . Reactor 3 | . . . . . 2 11 9 7 7 7 7 5 Treads 11 | . 28 27 22 22 9 . . . . . . . Leg 14 | . . . . . 12 22 33 30 30 30 30 24 Device 3 | . . . . . 2 . . 7 7 7 7 4 Storage 12 | . 14 14 18 22 12 11 9 7 7 7 7 5 Processor 17 | . 12 14 19 22 21 33 20 15 15 15 15 21 Protection 5 | . . . . . 3 . 6 12 15 15 15 9 Energy Gun 3 | . 13 14 6 . . . . . . . . . Ballistic Gun 8 | . 14 14 10 8 10 22 9 12 . . . 4 Launcher 5 | . . . . 13 8 . 4 1 7 7 7 3 Slashing Weapon 1 | . . . . . . . . . 7 7 5 . Naked Turns . | . . . . . . . . . . . . . Heaviest Build 86 | 12 50 54 60 63 64 64 71 86 81 83 83 85 Greatest Support 95 | 40 46 43 43 43 60 60 95 95 95 95 95 95 Greatest Overweight (x) 1 | . 1 1 1 1 1 1 . . . . . . Average Overweight (x) . | . . 1 1 1 . 1 . . . . . . Largest Inventory Capacity 20 | 8 20 20 20 20 20 20 20 20 20 20 20 20 Average Capacity 19 | 8 18 20 20 20 20 20 20 20 20 20 20 16 Most Carried 20 | 6 16 20 20 20 20 20 20 20 20 20 20 20 Average Carried 18 | 3 13 16 19 19 17 20 19 19 20 19 19 15 Final Capacity 20 | 8 20 20 20 20 20 20 20 20 20 20 20 5 Final Carried 20 | 1 16 20 20 20 20 20 20 20 20 19 20 3 Class Distribution -------------------- 50% | Mutant 49% | Scavenger-Mutant Dominant Class ---------------- Mutant | -10/Materials Mutant | -10/Mines Mutant | -9/Materials Mutant | -9/Mines Mutant | -9/Exiles Scavenger-Mutant | -8/Mines Scavenger-Mutant | -8/Materials Scavenger-Mutant | -7/Factory Scavenger-Mutant | -7/Lower Caves Scavenger-Mutant | -7/Lower Caves Scavenger-Mutant | -7/Zion Scavenger-Mutant | -7/Deep Caves Resources | -11 -10 -10 -9 -9 -9 -8 -8 -7 -7 -7 -7 -7 ----------- Run | Scr Mat Min Mat Min Exi Min Mat Fac Low Low Zio Dee Matter Collected 3252 | 200 430 164 484 94 776 . 329 416 58 121 59 121 Remotely . | . . . . . . . . . . . . . Salvage Created 2919 | . 618 138 432 142 359 . 291 418 301 119 . 101 Parts 216 | . 32 9 25 22 73 . 12 26 9 1 . 7 Haulers Intercepted 5 | . 2 . 2 . . . . 1 . . . . Recyclers Shooed 2 | . . 2 . . . . . . . . . . Parts Field Recycled . | . . . . . . . . . . . . . Retrieved Matter . | . . . . . . . . . . . . . Parts Self-Destructed 9 | . . . . . . . . . 9 . . . Prevented . | . . . . . . . . . . . . . Kills | -11 -10 -10 -9 -9 -9 -8 -8 -7 -7 -7 -7 -7 ------- Run | Scr Mat Min Mat Min Exi Min Mat Fac Low Low Zio Dee Combat Hostiles Destroyed 60 | . 10 3 7 7 2 . 10 6 9 4 . 2 Melee 1 | . . . . . 1 . . . . . . . Guns 25 | . 7 3 5 . . . 4 6 . . . . AOE 34 | . 3 . 2 7 1 . 6 . 9 4 . 2 Classes Destroyed 15 | . 4 . . 3 2 . 1 2 1 1 . 1 Worker 4 | . 1 . 2 1 . . . . . . . . Builder 1 | . 1 . . . . . . . . . . . Hauler 5 | . 2 . 2 . . . . 1 . . . . Recycler 1 | . . . . 1 . . . . . . . . Swarmer 9 | . . . . 4 . . 4 . 1 . . . Grunt 39 | . 10 3 7 2 . . 5 3 5 4 . . Brawler 2 | . . . . . . . . . 2 . . . Duelist 1 | . . . . . . . 1 . . . . . Protector 1 | . . . . 1 . . . . . . . . Sentry 3 | . . . . . . . . 2 1 . . . Programmer 1 | . . . . . . . . 1 . . . . Zionite 5 | . . . . . 5 . . . . . . . Z-Light 2 | . . . . . . . . . . . . 2 Samaritan 1 | . . . . . . . . . . 1 . . Assembled 7 | . . . . . 7 . . . . . . . Thug 1 | . . . 1 . . . . . . . . . Best Kill Streak 6 | . 3 2 4 5 3 . 4 3 6 4 . 2 Combat Bots Only 6 | . 2 2 3 3 1 . 4 3 6 4 . 2 Max Kills in Single Turn 6 | . 2 1 1 4 6 . 3 1 2 3 . 1 Gunslinging . | . . . . . . . . . . . . . Exploded 3 | . 1 . 1 2 1 . 3 . 2 3 . 1 Melee 1 | . . . . . 1 . . . . . . . Uniques/NPCs Destroyed 4 | . . . . . 4 . . . . . . . 8R-AWN (-9/Exiles) EX-DEC (-9/Exiles) EX-HEX (-9/Exiles) EX-BIN (-9/Exiles) Combat | -11 -10 -10 -9 -9 -9 -8 -8 -7 -7 -7 -7 -7 -------- Run | Scr Mat Min Mat Min Exi Min Mat Fac Low Low Zio Dee Damage Taken 4698 | . 492 150 322 105 906 . 390 222 206 85 . 1820 Core 1124 | . 21 10 78 24 203 . 88 13 44 . . 643 Absorbed by Shields . | . . . . . . . . . . . . . Redirected to Shielding 56 | . . . . . 51 . . . 5 . . . Core Remaining (%) 73 | 100 . 87 . . . 23 84 . . . . . Volleys Fired 193 | . 32 11 22 5 42 . 24 26 12 6 . 13 Largest 2 | . 2 2 2 2 2 . 2 2 1 1 . 2 Hottest 113 | . 65 65 113 69 90 . 60 60 33 36 . 60 Shots Fired 319 | . 58 21 40 6 68 . 34 52 12 6 . 22 Gun 268 | . 58 21 33 . 56 . 29 52 . . . 19 Cannon 4 | . . . 4 . . . . . . . . . Launcher 46 | . . . 3 6 12 . 5 . 12 6 . 2 Special 1 | . . . . . . . . . . . . 1 Kinetic 212 | . 32 11 26 . 44 . 29 52 . . . 18 Thermal 6 | . . . 4 . . . . . . . . 2 Explosive 46 | . . . 3 6 12 . 5 . 12 6 . 2 Electromagnetic 55 | . 26 10 7 . 12 . . . . . . . Robot Hit Streak 12 | . 12 5 7 1 10 . 6 9 1 1 . 5 Robot Miss Streak 5 | . 3 4 2 2 2 . 2 4 2 . . 5 Penetration Max 2 | . . . . . 2 . . 1 . . . 1 Secondary Targets 1 | . . . . . . . . 1 . . . . Max Gunslinging Chain 1 | . . . . . . . . 1 . . . . Shots Hit Robots 210 | . 40 17 23 2 53 . 23 30 3 2 . 17 Core Hits 168 | . 26 6 16 12 29 . 17 13 26 13 . 10 Critical Kills 8 | . . . . . 1 . 2 5 . . . . Critical Parts Destroyed 22 | . 1 . . . 10 . 7 3 . . . 1 Critical Strikes 34 | . 1 . . . 11 . 9 10 . . . 3 Destroy 34 | . 1 . . . 11 . 9 10 . . . 3 Melee Attacks 52 | . . . . . 18 . . 2 . 1 20 11 Impact 30 | . . . . . . . . . . . 19 11 Slashing 22 | . . . . . 18 . . 2 . 1 1 . Piercing . | . . . . . . . . . . . . . Sneak Attacks 1 | . . . . . . . . . . 1 . . Combat Hostiles . | . . . . . . . . . . . . . Follow-up Attacks . | . . . . . . . . . . . . . Damage Inflicted 7591 | . 824 264 673 541 1777 . 980 398 707 745 . 682 Guns 2713 | . 650 245 309 . 560 . 332 398 . . . 219 Cannons 42 | . . . 42 . . . . . . . . . Explosions 3666 | . 150 . 322 540 414 . 648 . 707 661 . 224 Melee 1114 | . . . . . 803 . . . . 84 . 227 Ramming 44 | . 24 19 . 1 . . . . . . . . Kinetic 2051 | . 257 96 229 . 549 . 332 398 . . . 190 Thermal 216 | . 78 . 88 . 9 . . . . . . 41 Explosive 3533 | . 72 . 276 540 405 . 648 . 707 661 . 224 Electromagnetic 633 | . 393 149 80 . 11 . . . . . . . Impact 227 | . . . . . . . . . . . . 227 Slashing 887 | . . . . . 803 . . . . 84 . . Piercing . | . . . . . . . . . . . . . Highest Corruption . | . . . . . . . . . . . . . Average Corruption . | . . . . . . . . . . . . . Corruption Purged . | . . . . . . . . . . . . . Corruption Blocked . | . . . . . . . . . . . . . Overload Shots . | . . . . . . . . . . . . . Overflow Damage 81 | . 21 6 . . . . 8 . 13 . . 33 Projectiles . | . . . . . . . . . . . . . Explosions 42 | . 21 . . . . . 8 . 13 . . . Melee 39 | . . 6 . . . . . . . . . 33 Knockbacks 3 | . . . . . . . . . . . . 3 Impact 3 | . . . . . . . . . . . . 3 Kinetic . | . . . . . . . . . . . . . Secondary . | . . . . . . . . . . . . . Self-Inflicted Damage 225 | . 133 . . . 62 . . . 20 10 . . Shots 6 | . 2 . . . 1 . . . 2 1 . . Rammed 9 | . 5 2 . 2 . . . . . . . . Targets Rammed 9 | . 5 2 . 2 . . . . . . . . Kicked . | . . . . . . . . . . . . . Crushed . | . . . . . . . . . . . . . Highest Temperature 156 | . 42 29 138 12 156 . 2 . . 4 . 33 Average Temperature 25 | . 13 14 64 7 37 . 2 . . 4 . 15 Received Heat Transfer 1221 | . 168 84 129 39 . . 126 81 54 45 . 495 Siege Activations . | . . . . . . . . . . . . . Robots Corrupted . | . . . . . . . . . . . . . Combat Hostiles . | . . . . . . . . . . . . . Parts Fried . | . . . . . . . . . . . . . Impact Corruptions 3 | . . 1 . . . . . . . . . 2 Robots Melted . | . . . . . . . . . . . . . Combat Hostiles . | . . . . . . . . . . . . . Parts Melted . | . . . . . . . . . . . . . Heat Transferred 254 | . 50 . 174 . 12 . . . . . . 18 Parts Sabotaged . | . . . . . . . . . . . . . Parts Stolen . | . . . . . . . . . . . . . Parts Stripped . | . . . . . . . . . . . . . Power Chain Reactions 4 | . 2 . 1 . 1 . . . . . . . Missiles Intercepted . | . . . . . . . . . . . . . Alert | -11 -10 -10 -9 -9 -9 -8 -8 -7 -7 -7 -7 -7 ------- Run | Scr Mat Min Mat Min Exi Min Mat Fac Low Low Zio Dee Peak Influence 365 | . 260 50 215 365 . . 323 293 . . . . Initial 146 | . . 34 7 59 . . . 146 . . . . Average 118 | . 107 21 55 211 . . 167 195 . . . . Maximum Alert Level 1 | . 1 . 1 1 . . 1 1 . . . . Low Security (%) 84 | 100 90 100 98 81 . 100 46 63 . . . . Level 1 15 | . 9 . 1 18 . . 53 36 . . . . Level 2 . | . . . . . . . . . . . . . Level 3 . | . . . . . . . . . . . . . Level 4 . | . . . . . . . . . . . . . Level 5 . | . . . . . . . . . . . . . High Security . | . . . . . . . . . . . . . Max Security . | . . . . . . . . . . . . . Squads Dispatched 9 | . 1 1 3 1 . . . 3 . . . . Investigation 2 | . . 1 1 . . . . . . . . . Extermination 1 | . . . . . . . . 1 . . . . Reinforcement 5 | . 1 . 2 . . . . 2 . . . . Assault 1 | . . . . 1 . . . . . . . . Garrison . | . . . . . . . . . . . . . Intercept . | . . . . . . . . . . . . . Searches Triggered . | . . . . . . . . . . . . . Construction Impeded . | . . . . . . . . . . . . . Haulers Reinforced 1 | . . . . . . . . 1 . . . . Active Scanning Responses . | . . . . . . . . . . . . . Cargo Convoy Interrupts . | . . . . . . . . . . . . . Stealth | -11 -10 -10 -9 -9 -9 -8 -8 -7 -7 -7 -7 -7 --------- Run | Scr Mat Min Mat Min Exi Min Mat Fac Low Low Zio Dee Distress Signals 4 | . 1 . 3 . . . . . . . . . Communications Jammed . | . . . . . . . . . . . . . Distress Signals . | . . . . . . . . . . . . . Times Spotted 121 | . 23 5 21 10 24 . 15 7 9 4 . 3 Peak Tracking Total 6 | . 3 3 6 5 5 . 5 3 6 4 . 3 Tactical Retreats 21 | . . . 1 1 17 . 1 1 . . . . Traps | -11 -10 -10 -9 -9 -9 -8 -8 -7 -7 -7 -7 -7 ------- Run | Scr Mat Min Mat Min Exi Min Mat Fac Low Low Zio Dee Traps Triggered 1 | . 1 . . . . . . . . . . . Indirectly . | . . . . . . . . . . . . . Trap Hack Attempts . | . . . . . . . . . . . . . Triggered . | . . . . . . . . . . . . . Disarmed . | . . . . . . . . . . . . . Reprogrammed . | . . . . . . . . . . . . . Reused . | . . . . . . . . . . . . . Traps Extracted . | . . . . . . . . . . . . . Installed . | . . . . . . . . . . . . . Triggered . | . . . . . . . . . . . . . Machines | -11 -10 -10 -9 -9 -9 -8 -8 -7 -7 -7 -7 -7 ---------- Run | Scr Mat Min Mat Min Exi Min Mat Fac Low Low Zio Dee Machines Disabled 18 | . 1 . 2 . 10 . 2 2 . . 1 . Max in Single Turn 2 | . 1 . 2 . 2 . 1 1 . . 1 . Garrison Access 1 | . . . . . . . . 1 . . . . Machines Sabotaged . | . . . . . . . . . . . . . Garrisons Compromised . | . . . . . . . . . . . . . Overloaded Fab Kills . | . . . . . . . . . . . . . Hacking | -11 -10 -10 -9 -9 -9 -8 -8 -7 -7 -7 -7 -7 --------- Run | Scr Mat Min Mat Min Exi Min Mat Fac Low Low Zio Dee Machines Accessed 9 | . 1 1 . 1 1 . 1 4 . . . . Terminals 5 | . 1 . . . . . 1 3 . . . . Fabricators . | . . . . . . . . . . . . . Repair Stations . | . . . . . . . . . . . . . Recycling Units . | . . . . . . . . . . . . . Scanalyzers . | . . . . . . . . . . . . . Garrison Access 1 | . . . . . . . . 1 . . . . Total Hacks 15 | . 3 1 . 1 1 . 1 8 . . . . Successful 7 | . . 1 . 1 1 . . 4 . . . . Failed 8 | . 3 . . . . . 1 4 . . . . Catastrophic 2 | . 1 . . . . . 1 . . . . . Database Lockouts . | . . . . . . . . . . . . . Manual 8 | . 3 . . . 1 . 1 3 . . . . Terminals 9 | . 3 . . . . . 1 5 . . . . Fabricators . | . . . . . . . . . . . . . Repair Stations . | . . . . . . . . . . . . . Recycling Units . | . . . . . . . . . . . . . Scanalyzers . | . . . . . . . . . . . . . Garrison Access 3 | . . . . . . . . 3 . . . . Terminal Hacks 6 | . . 1 . 1 1 . . 3 . . . . Open Door 2 | . . 1 . 1 . . . . . . . . Level Access Points 1 | . . . . . . . . 1 . . . . Branch Access Points 1 | . . . . . . . . 1 . . . . Terminal Index 1 | . . . . . . . . 1 . . . . EX-Prototype ID Bank 1 | . . . . . 1 . . . . . . . Fabricator Hacks . | . . . . . . . . . . . . . Repair Station Hacks . | . . . . . . . . . . . . . Recycling Unit Hacks . | . . . . . . . . . . . . . Scanalyzer . | . . . . . . . . . . . . . Garrison Access Hacks 1 | . . . . . . . . 1 . . . . Seal Access 1 | . . . . . . . . 1 . . . . Unauthorized Hacks . | . . . . . . . . . . . . . Terminals . | . . . . . . . . . . . . . Fabricators . | . . . . . . . . . . . . . Repair Stations . | . . . . . . . . . . . . . Recycling Units . | . . . . . . . . . . . . . Scanalyzers . | . . . . . . . . . . . . . Garrison Access . | . . . . . . . . . . . . . Data Cores Recovered . | . . . . . . . . . . . . . Used . | . . . . . . . . . . . . . Hacking Detections 6 | . 1 . . . . . 1 4 . . . . Full Trace Events . | . . . . . . . . . . . . . Feedback Events . | . . . . . . . . . . . . . Feedback Blocked . | . . . . . . . . . . . . . Robot Schematics Acquired 4 | . . . . . . . . . . . 4 . Robots Built . | . . . . . . . . . . . . . Authchips . | . . . . . . . . . . . . . Time . | . . . . . . . . . . . . . Total Robot Build Rating . | . . . . . . . . . . . . . Part Schematics Acquired 15 | . . . . . . . . . . . 15 . Parts Built . | . . . . . . . . . . . . . Authchips . | . . . . . . . . . . . . . Time . | . . . . . . . . . . . . . Total Part Build Rating . | . . . . . . . . . . . . . Parts Repaired . | . . . . . . . . . . . . . Time . | . . . . . . . . . . . . . Parts Recycled . | . . . . . . . . . . . . . Recycled Matter . | . . . . . . . . . . . . . Retrieved Matter . | . . . . . . . . . . . . . Retrieved Components . | . . . . . . . . . . . . . Parts Scanalyzed . | . . . . . . . . . . . . . Part Schematics Acquired . | . . . . . . . . . . . . . Parts Damaged . | . . . . . . . . . . . . . Bothacking | -11 -10 -10 -9 -9 -9 -8 -8 -7 -7 -7 -7 -7 ------------ Run | Scr Mat Min Mat Min Exi Min Mat Fac Low Low Zio Dee Used RIF Installer . | . . . . . . . . . . . . . Robots Hacked . | . . . . . . . . . . . . . Non-combat . | . . . . . . . . . . . . . Combat . | . . . . . . . . . . . . . Robot Hacks Applied . | . . . . . . . . . . . . . Relay Couplers Released . | . . . . . . . . . . . . . Fabnet Peak Effective % . | . . . . . . . . . . . . . Robots Rewired . | . . . . . . . . . . . . . Allies Hacked . | . . . . . . . . . . . . . Hacks Repelled . | . . . . . . . . . . . . . Allies | -11 -10 -10 -9 -9 -9 -8 -8 -7 -7 -7 -7 -7 -------- Run | Scr Mat Min Mat Min Exi Min Mat Fac Low Low Zio Dee Total Allies 3 | . . 2 . 1 . . . . . . . . Largest Group 2 | . . 2 . 1 1 . . . . . . . Highest-Rated Group 43 | . . 43 . 31 31 . . . . . . . Highest-Rated Ally 31 | . . 31 . 31 31 . . . . . . . Total Orders 1 | . . . . . . . . 1 . . . . RETURN 1 | . . . . . . . . 1 . . . . Ally Attacks 18 | . . 7 . 6 5 . . . . . . . Total Damage 233 | . . 86 . 104 43 . . . . . . . Kills 2 | . . . . 2 . . . . . . . . Allies Corrupted . | . . . . . . . . . . . . . Allies Melted . | . . . . . . . . . . . . . Intel | -11 -10 -10 -9 -9 -9 -8 -8 -7 -7 -7 -7 -7 ------- Run | Scr Mat Min Mat Min Exi Min Mat Fac Low Low Zio Dee Robot Analysis Total . | . . . . . . . . . . . . . Derelict Logs Recovered 3 | . . . . 1 . . . . . 2 . . Drone Launches 9 | . . . . . . . . 5 4 . . . Drone Recoveries 5 | . . . . . . . . 3 2 . . . Exploration | -11 -10 -10 -9 -9 -9 -8 -8 -7 -7 -7 -7 -7 ------------- Run | Scr Mat Min Mat Min Exi Min Mat Fac Low Low Zio Dee Turns Passed 7608 | 6 1007 695 571 685 1633 78 313 598 382 522 922 196 Spaces Moved 3900 | 1 377 268 194 276 674 42 189 382 282 405 704 106 Core 20 | . . . . . . . . . . . . 20 Treads 1375 | 1 377 268 194 276 259 . . . . . . . Legs 2505 | . . . . . 415 42 189 382 282 405 704 86 Wheels . | . . . . . . . . . . . . . Hover . | . . . . . . . . . . . . . Flight . | . . . . . . . . . . . . . Fastest Speed 50 | 160 160 240 240 240 120 190 125 125 125 125 125 50 Average Speed 168 | 160 226 240 240 240 192 190 125 125 125 125 125 110 Slowest Speed 240 | 160 240 240 240 240 240 190 126 125 125 125 125 125 Overloaded Moves . | . . . . . . . . . . . . . Propulsion Burnouts . | . . . . . . . . . . . . . Robots Hopped . | . . . . . . . . . . . . . Cave-ins Triggered . | . . . . . . . . . . . . . Exploration Rate (%) 44 | 2 65 66 24 46 87 18 24 16 55 69 79 21 Regions Visited 12 Branch Regions 8 Pre-discovered Areas 5 | . . . . 1 . . . . . 2 2 . Known Exits Taken 1 | . . . . . . . . 1 . . . . Unknown Exits Taken 11 | 1 1 1 1 1 1 1 1 . 1 1 1 . Scrap Searched 6 | . . 1 . . . . . . . 2 3 . Spaces Dug 16 | . . . . . . . . 2 12 . 2 . Terrain Destroyed 312 | . 22 . 27 56 30 . 51 7 75 22 2 20 Melee 4 | . . . . . . . . 2 . . 2 . Projectile 13 | . . . . . 3 . 3 3 . . . 4 AOE 292 | . 22 . 27 56 27 . 47 . 75 22 . 16 Terrain Rammed . | . . . . . . . . . . . . . Walls Destroyed . | . . . . . . . . . . . . . Machines Disabled . | . . . . . . . . . . . . . Actions | -11 -10 -10 -9 -9 -9 -8 -8 -7 -7 -7 -7 -7 --------- Run | Scr Mat Min Mat Min Exi Min Mat Fac Low Low Zio Dee Total 4558 | 8 465 297 261 290 929 41 231 448 299 414 726 149 Wait 188 | . 18 6 18 . 108 . 9 21 6 . . 2 Move 3888 | . 376 267 193 275 673 41 188 381 281 404 703 106 Hop . | . . . . . . . . . . . . . Pick Up 66 | . 17 6 6 2 22 . 3 6 . 1 1 2 Fast Attach 26 | . 3 2 3 . 14 . 1 1 . . 1 1 Attach 25 | 2 1 1 3 . 7 . 3 2 . 1 . 5 Detach 8 | . 1 . 2 . 4 . 1 . . . . . Swap 38 | 1 6 . 6 4 11 . 1 4 . . . 5 Drop 65 | 5 6 2 8 2 30 . 1 5 . 1 1 4 Fire 193 | . 32 11 22 5 42 . 24 26 12 6 . 13 Melee 52 | . . . . . 18 . . 2 . 1 20 11 Ram . | . . . . . . . . . . . . . Kick . | . . . . . . . . . . . . . Crush 9 | . 5 2 . 2 . . . . . . . . Escape Stasis . | . . . . . . . . . . . . . Rewire . | . . . . . . . . . . . . . Trap . | . . . . . . . . . . . . . Miscellaneous . | . . . . . . . . . . . . . Route ------- -11/Scrapyard -10/Materials (discovered 2 exits: [*Mat] / *Min) -10/Mines -9/Materials (discovered 2 exits: *Min x2) -9/Mines -9/Exiles (discovered 2 exits: [*Min x2]) -8/Mines -8/Materials -7/Factory (discovered 6 exits: Fac x4 / *Low x2) -7/Lower Caves -7/Lower Caves -7/Zion (discovered 2 exits: [*Dee] / [*Pro]) -7/Deep Caves History --------- Turn | Location | Event 7 | -11/Scrapyard | Discovered new exit (range 0) 7 | -11/Scrapyard | Entered Materials 301 | -10/Materials | Build established: Mutant 424 | -10/Materials | Discovered new exit (range 3) 672 | -10/Materials | Discovered new exit (range 12) 1014 | -10/Materials | Entered Mines 1533 | -10/Mines | Received a Rocket Launcher from a helpful Derelict 1609 | -10/Mines | Discovered new exit (range 5) 1627 | -10/Mines | Met a Derelict shopkeep closing up shop 1709 | -10/Mines | Entered Materials 1709 | -9/Materials | Evolved 2 slots: Utility x2 1808 | -9/Materials | Discovered new exit (range 10) 2244 | -9/Materials | Discovered new exit (range 6) 2280 | -9/Materials | Entered Mines 2339 | -9/Mines | Met a Derelict testing a Signal Generator 2358 | -9/Mines | Found Signal Generator 2402 | -9/Mines | Learned Materials emergency access door positions 2520 | -9/Mines | Found the Drone Emporium 2529 | -9/Mines | Found Prototype Device 2722 | -9/Mines | Assembled infested the area 2899 | -9/Mines | Learned location of Storage (-9) 2956 | -9/Mines | Deemed a non-threat by the Exiles lab entrance 2956 | -9/Mines | Discovered new exit (range 5) 2965 | -9/Mines | Entered Exiles 2965 | -9/Exiles | Accompanied by 1 ally 3004 | -9/Exiles | Discovered new exit (range 15) 3030 | -9/Exiles | Met 8R-AWN 3076 | -9/Exiles | Met EX-HEX 3094 | -9/Exiles | Identified Sensor Drone Bay 3319 | -9/Exiles | Met EX-BIN 3348 | -9/Exiles | Aligned with FarCom system 3351 | -9/Exiles | Given EX-Vault access code 3411 | -9/Exiles | Opened EX-Vault 3427 | -9/Exiles | Found Longsword +1 3484 | -9/Exiles | Warned to stay clear of 0b10 Research branches 3577 | -9/Exiles | Attacked by the Exiles 3626 | -9/Exiles | Core integrity fell below 50% 3657 | -9/Exiles | Destroyed 8R-AWN 3664 | -9/Exiles | Found Prototype Device 3664 | -9/Exiles | Identified AS-neutralizer No. 17b 3667 | -9/Exiles | Lost 6 parts (1p3n1u1w) 3675 | -9/Exiles | Found Prototype Processor 3675 | -9/Exiles | Identified Exp. Targeting Computer 3703 | -9/Exiles | Found Prototype Ballistic Gun 3703 | -9/Exiles | Identified 8R-AWN's Boregun 3707 | -9/Exiles | Found 8R-AWN's Boregun 4122 | -9/Exiles | Destroyed EX-DEC 4143 | -9/Exiles | Destroyed EX-HEX 4158 | -9/Exiles | Destroyed EX-BIN 4225 | -9/Exiles | Found Prototype Processor 4225 | -9/Exiles | Identified Exp. Core Analyzer 4303 | -9/Exiles | Build established: Scavenger-Mutant 4581 | -9/Exiles | Discovered new exit (range 11) 4598 | -9/Exiles | Entered Mines 4669 | -8/Mines | Discovered new exit (range 4) 4676 | -8/Mines | Entered Materials 4676 | -8/Materials | Evolved 2 slots: Propulsion x2 4939 | -8/Materials | Discovered new exit (range 15) 4989 | -8/Materials | Entered Factory 4989 | -7/Factory | Evolved 2 slots: Utility x2 5507 | -7/Factory | Identified exit to Lower Caves 5507 | -7/Factory | Identified exit to Factory 5587 | -7/Factory | Entered Lower Caves 5587 | -7/Lower Caves | Accompanied by 1 ally 5712 | -7/Lower Caves | Encountered a Warlord checkpoint 5824 | -7/Lower Caves | Attracted the attention of an 0b10 checkpoint 5961 | -7/Lower Caves | Discovered new exit (range 5) 5969 | -7/Lower Caves | Entered another Lower Caves area 5969 | -7/Lower Caves | Accompanied by 3 allies 6365 | -7/Lower Caves | Learned location of Zion (-7) 6473 | -7/Lower Caves | Discovered new exit (range 14) 6491 | -7/Lower Caves | Entered Zion 6491 | -7/Zion | Accompanied by 2 allies 6528 | -7/Zion | Discovered new exit (range 16) 6550 | -7/Zion | Given the Hacking Drone Bay 6640 | -7/Zion | Found Prototype Device 7129 | -7/Zion | Received a hallucinogenic algorithm 7152 | -7/Zion | Learned location of Armory (-3) 7407 | -7/Zion | Discovered new exit (range 6) 7409 | -7/Zion | Saw the warning signs outside the Deep Caves entrance 7413 | -7/Zion | Entered Deep Caves 7413 | -7/Deep Caves | Accompanied by 2 allies 7499 | -7/Deep Caves | Identified Phasing AFG 7530 | -7/Deep Caves | Attacked by Z-Imprinter 7583 | -7/Deep Caves | Core integrity fell below 50% 7600 | -7/Deep Caves | Core integrity fell below 20% 7609 | -7/Deep Caves | Destroyed by Z-Imprinter with Zionite Laser-M Last Messages --------------- 07565_ Dropped Gravmag Array. 07567_ Acquired Plasma Cutter. 07569_ Acquired Mak. Hammer. 07573_ The unstable cave ceiling collapses. 07574_ Acquired 57 matter. 07576_ Acquired Prototype Energy Gun. 07576_ Identified Zio. Laser-S. 07579_ Zio. Laser-S destroyed. 07581_ The unstable cave ceiling collapses. 07582_ Plasma Cutter destroyed. 07585_ Adv. Myomer Leg destroyed. 07587_ Destroyed Prototype Hover Unit. 07587_ Z-Imprinter system corrupted by crushing effect. 07589_ Z-Imprinter knocked back. 07596_ Adv. Launcher Guidance Computer destroyed. 07600_ Z-Imprinter knocked back. 07606_ The unstable cave ceiling collapses. 07607_ Destroyed Prototype Storage. 07607_ Z-Imprinter system corrupted by crushing effect. 07607_ Z-Imprinter knocked back. Map ----- +----------------------------------------------------+ | | | | | | | | | | | | | | | | | | | | | ?????????????????????????????????????????????????? | | ?????????????????????????????????????????????????? | | ??????????????????????????????????#####???###????? | | ?????????????????????????????????? ##?# ????? | | ?????????????????????######???????# "# ?????? | | ????????????? ????### #???????# ??????? | | ?????????? ##### #?????## ???????? | | ???????? ?????## #???????? | | ?????? ?????# #????????? | | ???? #???### #????????? | | ?? #?## ## #????????? | | ??" ### ;; #????????? | | ??" # ;# #????????? | | ??" #####????? | | """ ###??? | | ? I @ ! ##?? | | ?"" %! ! #### ### | | ?"" # #??## | | ?"" #???##### #### | | """ ## # #??????####??## | | " % !=! ############????####?# | | ! !n= !!#?????## ###?## ### | | *== #?????# ### | | ! #?????# | | ##?????# | | " #??????# | | """ #?????# | | ? #?????## | | "" ##??????## | | ?"" ##????????# | | ??"" #?????????## | | ???" ??????????## | | ???" ??????????### | | ???? #???????????## | | ?????? ##????????????## | | ????????? #??????????????###### | | ??????????? #???????????????????## | | ???????????????? ?????????????????????# | | ??????????????????? ???????????????????????# | | ???????????????????????????????????????????????# | +----------------------------------------------------+ Best States ------------- Heat Dissipation 54 Coolant Potential 50 Energy Generation 18 Energy Capacity 275 Matter Stores 500 Matter Capacity 500 Sight Range 16 Robot Scan Range 15 Terrain Scan Density 10 Armor Coverage 450 Propulsion Shielding 33 Utility Shielding 33 Evasion (%) 55 Targeting Accuracy 23 Launcher Accuracy 40 Core Analysis 8 Armor Integrity Analysis 40 Recoil Reduction 2 Offensive Hacking 10 Item Schematics ----------------- Mak. Shrapnel Gun | -7/Zion | Archive Plasma Rifle | -7/Zion | Archive Remote Datajack | -7/Zion | Archive Arc Projector | -7/Zion | Archive Beamcaster | -7/Zion | Archive Mak. System Shield | -7/Zion | Archive Phase Cannon | -7/Zion | Archive Imp. Coolant Injector | -7/Zion | Archive Imp. Medium Treads | -7/Zion | Archive Hrd. Heavy Armor Plating | -7/Zion | Archive Adv. Melee Analysis Suite | -7/Zion | Archive Imp. Shield Generator | -7/Zion | Archive Power Amplifier | -7/Zion | Archive Gatling Laser | -7/Zion | Archive Wave Gun | -7/Zion | Archive Robot Schematics ------------------ B-48 Gladiator | -7/Zion | Archive O-24 Administrator | -7/Zion | Archive B-36 Bruiser | -7/Zion | Archive L-61 Swordsman | -7/Zion | Archive Fabricated ------------ Nothing Alien Tech Used ----------------- None Achievements -------------- None Challenges ------------ None Game ------ Seed HybridCooledImmobilizer Manual? 0 Play Time 00:54:47 Cumulative 239.0 hours Start 2022.06.14 @ 18:07:32 End 2022.06.14 @ 19:06:41 Sessions 1 Manual Loads 0 Difficulty Rogue Special Mode None Game No. 295 Rogue 295 Adventurer 0 Explorer 0 Win Type - Total 11 Types 8/0/2/1/0/0/0/0/0 Lore% 69 Gallery% 85 Achievement% 74 Wizard Run 0 Options --------- ASCII 0 Keyboard 0 Movement Numpad Keybinds 0 Fullscreen 1 Font 18/Terminus Map View 76x50 Tactical HUD 1 Map Filters NONE Filters NONE Steam 1 RUN: e8a59285-e02a-4d3b-9821-a6b33bf48859